[Event "November 21 Early 2023"]
[Site "https://www.chess.com"]
[Date "2023.11.21"]
[Round "6"]
[White "Kuzhylnyi, Oleksandr"]
[Black "Kassimov, Baurzhan"]
[Result "0-1"]
[Board "83"]
[TimeControl "180+1"]
[WhiteFideId "34110500"]
[BlackFideId "13704800"]
[WhiteElo "2173"]
[BlackElo "2220"]
[WhiteTeam "UKR"]
[BlackTeam "KAZ"]
[WhiteClock "0:00:14"]
[BlackClock "0:00:07"]

1. c3 {[%clk 0:03:00]}  Nf6 {[%clk 0:02:58]} 2. d4 {[%clk 0:03:00]}  d6 {[%clk 0:02:55]} 3. Bg5 {[%clk 0:02:58]}  Nbd7 {[%clk 0:02:53]} 4. Nd2 {[%clk 0:02:58]}  e5 {[%clk 0:02:53]} 5. e4 {[%clk 0:02:54]}  Be7 {[%clk 0:02:54]} 6. Ngf3 {[%clk 0:02:54]}  O-O {[%clk 0:02:53]} 7. Bd3 {[%clk 0:02:54]}  c6 {[%clk 0:02:50]} 8. O-O {[%clk 0:02:54]}  Re8 {[%clk 0:02:49]} 9. Re1 {[%clk 0:02:54]}  Qc7 {[%clk 0:02:48]} 10. Qc2 {[%clk 0:02:53]}  Nf8 {[%clk 0:02:48]} 11. Rad1 {[%clk 0:02:49]}  Ng6 {[%clk 0:02:48]} 12. Nh4 {[%clk 0:02:46]}  Nxh4 {[%clk 0:02:14]} 13. Bxh4 {[%clk 0:02:47]}  Nh5 {[%clk 0:02:10]} 14. Bxe7 {[%clk 0:02:45]}  Qxe7 {[%clk 0:02:11]} 15. g3 {[%clk 0:02:41]}  Bg4 {[%clk 0:02:05]} 16. Be2 {[%clk 0:02:40]}  Qg5 {[%clk 0:01:58]} 17. Nc4 {[%clk 0:02:31]}  Bxe2 {[%clk 0:01:47]} 18. Qxe2 {[%clk 0:02:29]}  Re6 {[%clk 0:01:25]} 19. dxe5 {[%clk 0:02:21]}  dxe5 {[%clk 0:01:25]} 20. Rd6 {[%clk 0:02:15]}  Rxd6 {[%clk 0:01:11]} 21. Nxd6 {[%clk 0:02:16]}  Rd8 {[%clk 0:01:12]} 22. Nc4 {[%clk 0:02:11]}  Nf4 {[%clk 0:01:08]} 23. Qf3 {[%clk 0:02:10]}  Rd3 {[%clk 0:01:02]} 24. Re3 {[%clk 0:02:03]}  Rxe3 {[%clk 0:00:47]} 25. Qxe3 {[%clk 0:02:02]}  b5 {[%clk 0:00:47]} 26. Nxe5 {[%clk 0:01:46]}  Nh3+ {[%clk 0:00:47]} 27. Kg2 {[%clk 0:01:46]}  Qxe5 {[%clk 0:00:47]} 28. Kxh3 {[%clk 0:01:47]}  Qe6+ {[%clk 0:00:48]} 29. Kg2 {[%clk 0:01:45]}  Qxa2 {[%clk 0:00:49]} 30. b4 {[%clk 0:01:40]}  h6 {[%clk 0:00:46]} 31. Qc5 {[%clk 0:01:39]}  Qe6 {[%clk 0:00:42]} 32. Qd4 {[%clk 0:01:37]}  a6 {[%clk 0:00:36]} 33. h4 {[%clk 0:01:36]}  h5 {[%clk 0:00:35]} 34. Qe3 {[%clk 0:01:26]}  g6 {[%clk 0:00:34]} 35. Qd4 {[%clk 0:01:20]}  Qg4 {[%clk 0:00:29]} 36. e5 {[%clk 0:01:17]}  Qe6 {[%clk 0:00:23]} 37. Qc5 {[%clk 0:01:09]}  Kg7 {[%clk 0:00:16]} 38. Kf3 {[%clk 0:01:03]}  Qf5+ {[%clk 0:00:12]} 39. Ke3 {[%clk 0:01:03]}  Qe6 {[%clk 0:00:13]} 40. Qd6 {[%clk 0:01:01]}  Qc4 {[%clk 0:00:10]} 41. Qd4 {[%clk 0:00:58]}  Qe6 {[%clk 0:00:10]} 42. Qc5 {[%clk 0:00:50]}  Kh7 {[%clk 0:00:08]} 43. f3 {[%clk 0:00:45]}  Kg7 {[%clk 0:00:08]} 44. Kd4 {[%clk 0:00:43]}  Qa2 {[%clk 0:00:05]} 45. Qxc6 {[%clk 0:00:42]}  Qd2+ {[%clk 0:00:05]} 46. Ke4 {[%clk 0:00:41]}  Qe2+ {[%clk 0:00:05]} 47. Kd4 {[%clk 0:00:35]}  Qd2+ {[%clk 0:00:06]} 48. Kc5 {[%clk 0:00:32]}  Qxc3+ {[%clk 0:00:06]} 49. Kb6 {[%clk 0:00:33]}  Qxb4 {[%clk 0:00:05]} 50. Kxa6 {[%clk 0:00:28]}  Qa4+ {[%clk 0:00:03]} 51. Kb6 {[%clk 0:00:28]}  Qd4+ {[%clk 0:00:04]} 52. Qc5 {[%clk 0:00:27]}  Qd3 {[%clk 0:00:01]} 53. f4 {[%clk 0:00:17]}  b4 {[%clk 0:00:01]} 54. Qxb4 {[%clk 0:00:17]}  Qxg3 {[%clk 0:00:02]} 55. Qd4 {[%clk 0:00:16]}  Qxh4 {[%clk 0:00:02]} 56. e6+ {[%clk 0:00:16]}  Qf6 {[%clk 0:00:03]} 57. Kc5 {[%clk 0:00:11]}  Qxd4+ {[%clk 0:00:02]} 58. Kxd4 {[%clk 0:00:12]}  fxe6 {[%clk 0:00:02]} 59. Ke3 {[%clk 0:00:13]}  Kf7 {[%clk 0:00:03]} 60. Kf2 {[%clk 0:00:14]}  Kf6 {[%clk 0:00:04]} 61. Kg3 {[%clk 0:00:15]}  Kf5 {[%clk 0:00:05]} 62. Kf3 {[%clk 0:00:15]}  g5 {[%clk 0:00:06]} 63. fxg5 {[%clk 0:00:14]}  Kxg5 {[%clk 0:00:07]} 0-1

[Event "November 21 Early 2023"]
[Site "https://www.chess.com"]
[Date "2023.11.21"]
[Round "6"]
[White "Miszler, Levente"]
[Black "Golubev, Mikhail"]
[Result "1/2-1/2"]
[Board "89"]
[TimeControl "180+1"]
[WhiteFideId "763276"]
[BlackFideId "14100983"]
[WhiteElo "2186"]
[BlackElo "2352"]
[WhiteTeam "HUN"]
[BlackTeam "UKR"]
[WhiteClock "0:00:05"]
[BlackClock "0:00:05"]

1. d4 {[%clk 0:03:00]}  Nf6 {[%clk 0:02:59]} 2. Nf3 {[%clk 0:03:00]}  d6 {[%clk 0:02:59]} 3. Bg5 {[%clk 0:02:56]}  Nbd7 {[%clk 0:02:59]} 4. c4 {[%clk 0:02:51]}  Ne4 {[%clk 0:02:43]} 5. Bh4 {[%clk 0:02:48]}  c5 {[%clk 0:02:33]} 6. Nbd2 {[%clk 0:02:40]}  Qa5 {[%clk 0:02:31]} 7. a3 {[%clk 0:02:37]}  g5 {[%clk 0:01:45]} 8. dxc5 {[%clk 0:01:38]}  Nxd2 {[%clk 0:01:11]} 9. b4 {[%clk 0:01:16]}  Nxf3+ {[%clk 0:01:10]} 10. exf3 {[%clk 0:01:17]}  Qd8 {[%clk 0:00:52]} 11. Bxg5 {[%clk 0:01:08]}  dxc5 {[%clk 0:00:49]} 12. Qa4 {[%clk 0:01:06]}  Qc7 {[%clk 0:00:41]} 13. Rd1 {[%clk 0:01:00]}  Qe5+ {[%clk 0:00:36]} 14. Be3 {[%clk 0:01:00]}  Bh6 {[%clk 0:00:33]} 15. Qb3 {[%clk 0:00:26]}  Bxe3 {[%clk 0:00:24]} 16. fxe3 {[%clk 0:00:25]}  O-O {[%clk 0:00:20]} 17. Kf2 {[%clk 0:00:24]}  Nf6 {[%clk 0:00:20]} 18. Bd3 {[%clk 0:00:22]}  Bf5 {[%clk 0:00:18]} 19. e4 {[%clk 0:00:20]}  Be6 {[%clk 0:00:15]} 20. g3 {[%clk 0:00:20]}  Rad8 {[%clk 0:00:14]} 21. Be2 {[%clk 0:00:19]}  Rd4 {[%clk 0:00:11]} 22. Qe3 {[%clk 0:00:17]}  Rfd8 {[%clk 0:00:10]} 23. Rdg1 {[%clk 0:00:16]}  Rd2 {[%clk 0:00:08]} 24. g4 {[%clk 0:00:17]}  Qd4 {[%clk 0:00:08]} 25. g5 {[%clk 0:00:17]}  Qxe3+ {[%clk 0:00:08]} 26. Kxe3 {[%clk 0:00:18]}  Ne8 {[%clk 0:00:07]} 27. h4 {[%clk 0:00:17]}  Ra2 {[%clk 0:00:05]} 28. bxc5 {[%clk 0:00:16]}  Rxa3+ {[%clk 0:00:05]} 29. Kf4 {[%clk 0:00:16]}  Ra5 {[%clk 0:00:04]} 30. h5 {[%clk 0:00:15]}  Ng7 {[%clk 0:00:04]} 31. g6 {[%clk 0:00:15]}  hxg6 {[%clk 0:00:04]} 32. hxg6 {[%clk 0:00:16]}  fxg6 {[%clk 0:00:04]} 33. Rxg6 {[%clk 0:00:17]}  Rf8+ {[%clk 0:00:04]} 34. Ke3 {[%clk 0:00:16]}  Kf7 {[%clk 0:00:03]} 35. Rhg1 {[%clk 0:00:15]}  Ne8 {[%clk 0:00:02]} 36. f4 {[%clk 0:00:15]}  Nf6 {[%clk 0:00:03]} 37. f5 {[%clk 0:00:14]}  Bd7 {[%clk 0:00:02]} 38. e5 {[%clk 0:00:15]}  Rxc5 {[%clk 0:00:02]} 39. exf6 {[%clk 0:00:14]}  exf6 {[%clk 0:00:03]} 40. Rg7+ {[%clk 0:00:14]}  Ke8 {[%clk 0:00:03]} 41. Bh5+ {[%clk 0:00:13]}  Kd8 {[%clk 0:00:03]} 42. Rd1 {[%clk 0:00:14]}  Re5+ {[%clk 0:00:03]} 43. Kf4 {[%clk 0:00:13]}  Re7 {[%clk 0:00:04]} 44. Rg2 {[%clk 0:00:10]}  Kc7 {[%clk 0:00:04]} 45. Rb2 {[%clk 0:00:10]}  Bc6 {[%clk 0:00:04]} 46. Rd4 {[%clk 0:00:06]}  a5 {[%clk 0:00:04]} 47. Bf3 {[%clk 0:00:06]}  a4 {[%clk 0:00:04]} 48. Bxc6 {[%clk 0:00:05]}  Kxc6 {[%clk 0:00:04]} 49. Rb4 {[%clk 0:00:05]}  Ra8 {[%clk 0:00:04]} 50. Rd2 {[%clk 0:00:04]}  Re5 {[%clk 0:00:04]} 51. Ra2 {[%clk 0:00:03]}  a3 {[%clk 0:00:04]} 52. Rb3 {[%clk 0:00:01]}  Rea5 {[%clk 0:00:05]} 53. Ke4 {[%clk 0:00:02]}  Ra4 {[%clk 0:00:05]} 54. Kd3 {[%clk 0:00:02]}  b6 {[%clk 0:00:04]} 55. Kc3 {[%clk 0:00:02]}  R8a5 {[%clk 0:00:05]} 56. Rb4 {[%clk 0:00:02]}  Rxb4 {[%clk 0:00:04]} 57. Kxb4 {[%clk 0:00:03]}  Rxf5 {[%clk 0:00:04]} 58. Rxa3 {[%clk 0:00:04]}  Re5 {[%clk 0:00:04]} 59. Ra8 {[%clk 0:00:04]}  f5 {[%clk 0:00:05]} 60. Rf8 {[%clk 0:00:04]}  Rc5 {[%clk 0:00:03]} 61. Rf6+ {[%clk 0:00:04]}  Kc7 {[%clk 0:00:03]} 62. Kb3 {[%clk 0:00:03]}  Re5 {[%clk 0:00:03]} 63. Kb4 {[%clk 0:00:03]}  Kd7 {[%clk 0:00:03]} 64. Rxb6 {[%clk 0:00:03]}  Ke7 {[%clk 0:00:03]} 65. c5 {[%clk 0:00:03]}  f4 {[%clk 0:00:04]} 66. Rb7+ {[%clk 0:00:02]}  Kd8 {[%clk 0:00:03]} 67. Kb5 {[%clk 0:00:02]}  f3 {[%clk 0:00:02]} 68. Rf7 {[%clk 0:00:02]}  Re3 {[%clk 0:00:02]} 69. c6 {[%clk 0:00:01]}  Rb3+ {[%clk 0:00:01]} 70. Kc5 {[%clk 0:00:02]}  Rc3+ {[%clk 0:00:02]} 71. Kd6 {[%clk 0:00:02]}  Rd3+ {[%clk 0:00:02]} 72. Ke6 {[%clk 0:00:03]}  Re3+ {[%clk 0:00:02]} 73. Kd6 {[%clk 0:00:03]}  Rd3+ {[%clk 0:00:03]} 74. Ke6 {[%clk 0:00:04]}  Re3+ {[%clk 0:00:03]} 75. Kd5 {[%clk 0:00:04]}  Rd3+ {[%clk 0:00:03]} 76. Ke4 {[%clk 0:00:04]}  Rc3 {[%clk 0:00:04]} 77. Rxf3 {[%clk 0:00:04]}  Rxf3 {[%clk 0:00:04]} 78. Kxf3 {[%clk 0:00:04]}  Kc7 {[%clk 0:00:05]} 79. Ke4 {[%clk 0:00:05]}  Kxc6 {[%clk 0:00:05]} 1/2-1/2

[Event "November 21 Early 2023"]
[Site "https://www.chess.com"]
[Date "2023.11.21"]
[Round "6"]
[White "Mohammed, Zozek Salah Mohammed"]
[Black "Maltsevskaya, Aleksandra"]
[Result "0-1"]
[Board "92"]
[TimeControl "180+1"]
[WhiteFideId "4803361"]
[BlackFideId "24174041"]
[WhiteElo "2211"]
[BlackElo "2296"]
[WhiteTeam "IRQ"]
[BlackTeam "POL"]
[WhiteClock "0:00:06"]
[BlackClock "0:00:04"]

1. d4 {[%clk 0:02:58]}  Nf6 {[%clk 0:02:58]} 2. Nf3 {[%clk 0:02:56]}  g6 {[%clk 0:02:59]} 3. g3 {[%clk 0:02:56]}  Bg7 {[%clk 0:02:59]} 4. Bg2 {[%clk 0:02:57]}  O-O {[%clk 0:03:00]} 5. O-O {[%clk 0:02:57]}  d6 {[%clk 0:03:01]} 6. c4 {[%clk 0:02:57]}  Nbd7 {[%clk 0:03:01]} 7. b3 {[%clk 0:02:57]}  e5 {[%clk 0:02:50]} 8. dxe5 {[%clk 0:02:57]}  Ng4 {[%clk 0:02:50]} 9. Bb2 {[%clk 0:02:56]}  Ngxe5 {[%clk 0:02:51]} 10. Qc1 {[%clk 0:02:50]}  a5 {[%clk 0:02:51]} 11. Nc3 {[%clk 0:02:49]}  a4 {[%clk 0:02:51]} 12. Nxa4 {[%clk 0:02:47]}  Re8 {[%clk 0:02:50]} 13. Nc3 {[%clk 0:02:43]}  Nc5 {[%clk 0:02:50]} 14. Nxe5 {[%clk 0:02:40]}  Bxe5 {[%clk 0:02:49]} 15. Nd5 {[%clk 0:02:39]}  c6 {[%clk 0:02:41]} 16. Bxe5 {[%clk 0:02:35]}  dxe5 {[%clk 0:02:40]} 17. Nc3 {[%clk 0:02:31]}  Bf5 {[%clk 0:02:38]} 18. Rd1 {[%clk 0:02:31]}  Qa5 {[%clk 0:02:38]} 19. Qb2 {[%clk 0:02:13]}  Qa3 {[%clk 0:02:35]} 20. Qxa3 {[%clk 0:02:09]}  Rxa3 {[%clk 0:02:32]} 21. Rac1 {[%clk 0:02:09]}  Rea8 {[%clk 0:02:19]} 22. Rd2 {[%clk 0:02:06]}  Na6 {[%clk 0:02:18]} 23. Rcd1 {[%clk 0:01:48]}  Nb4 {[%clk 0:02:14]} 24. Rd8+ {[%clk 0:01:49]}  Kg7 {[%clk 0:02:10]} 25. Rxa8 {[%clk 0:01:48]}  Rxa8 {[%clk 0:02:11]} 26. Rd2 {[%clk 0:01:46]}  Ra3 {[%clk 0:02:04]} 27. h3 {[%clk 0:01:45]}  Be6 {[%clk 0:01:59]} 28. Kf1 {[%clk 0:01:41]}  f5 {[%clk 0:01:43]} 29. e4 {[%clk 0:01:35]}  f4 {[%clk 0:01:35]} 30. g4 {[%clk 0:01:22]}  Bxc4+ {[%clk 0:01:34]} 31. Kg1 {[%clk 0:01:13]}  Be6 {[%clk 0:01:29]} 32. Bf1 {[%clk 0:01:13]}  h5 {[%clk 0:01:26]} 33. gxh5 {[%clk 0:01:11]}  gxh5 {[%clk 0:01:27]} 34. f3 {[%clk 0:01:10]}  c5 {[%clk 0:01:25]} 35. Rd6 {[%clk 0:01:07]}  Kf7 {[%clk 0:01:24]} 36. Rb6 {[%clk 0:01:07]}  Nxa2 {[%clk 0:01:23]} 37. Nxa2 {[%clk 0:01:07]}  Rxa2 {[%clk 0:01:23]} 38. Rxb7+ {[%clk 0:01:08]}  Kf6 {[%clk 0:01:23]} 39. Rb6 {[%clk 0:01:03]}  Ke7 {[%clk 0:01:23]} 40. b4 {[%clk 0:00:58]}  Ra1 {[%clk 0:01:23]} 41. Kg2 {[%clk 0:00:50]}  c4 {[%clk 0:01:21]} 42. Rc6 {[%clk 0:00:50]}  Ra2+ {[%clk 0:01:18]} 43. Kg1 {[%clk 0:00:48]}  Rb2 {[%clk 0:01:18]} 44. Bxc4 {[%clk 0:00:44]}  Bxh3 {[%clk 0:01:13]} 45. b5 {[%clk 0:00:42]}  Bd7 {[%clk 0:00:49]} 46. Rh6 {[%clk 0:00:32]}  h4 {[%clk 0:00:43]} 47. Rxh4 {[%clk 0:00:29]}  Kd6 {[%clk 0:00:43]} 48. Rh6+ {[%clk 0:00:26]}  Kc5 {[%clk 0:00:44]} 49. Bf1 {[%clk 0:00:23]}  Rb1 {[%clk 0:00:32]} 50. Kg2 {[%clk 0:00:19]}  Rb2+ {[%clk 0:00:30]} 51. Kg1 {[%clk 0:00:19]}  Bxb5 {[%clk 0:00:20]} 52. Bxb5 {[%clk 0:00:19]}  Rxb5 {[%clk 0:00:21]} 53. Kg2 {[%clk 0:00:16]}  Kd4 {[%clk 0:00:21]} 54. Ra6 {[%clk 0:00:14]}  Rb2+ {[%clk 0:00:19]} 55. Kh3 {[%clk 0:00:12]}  Ke3 {[%clk 0:00:16]} 56. Ra3+ {[%clk 0:00:12]}  Kf2 {[%clk 0:00:16]} 57. Kg4 {[%clk 0:00:12]}  Re2 {[%clk 0:00:16]} 58. Kf5 {[%clk 0:00:11]}  Re3 {[%clk 0:00:16]} 59. Ra2+ {[%clk 0:00:11]}  Kxf3 {[%clk 0:00:16]} 60. Ra4 {[%clk 0:00:09]}  Kg3 {[%clk 0:00:11]} 61. Kxe5 {[%clk 0:00:09]}  f3 {[%clk 0:00:12]} 62. Ra2 {[%clk 0:00:06]}  f2 {[%clk 0:00:11]} 63. Rxf2 {[%clk 0:00:04]}  Kxf2 {[%clk 0:00:12]} 64. Kf5 {[%clk 0:00:05]}  Rf3+ {[%clk 0:00:10]} 65. Kg6 {[%clk 0:00:04]}  Ke3 {[%clk 0:00:04]} 66. e5 {[%clk 0:00:04]}  Kd4 {[%clk 0:00:04]} 67. e6 {[%clk 0:00:04]}  Re3 {[%clk 0:00:05]} 68. Kf7 {[%clk 0:00:03]}  Rf3+ {[%clk 0:00:05]} 69. Kg8 {[%clk 0:00:02]}  Re3 {[%clk 0:00:02]} 70. e7 {[%clk 0:00:03]}  Rxe7 {[%clk 0:00:02]} 71. Kf8 {[%clk 0:00:04]}  Ra7 {[%clk 0:00:02]} 72. Ke8 {[%clk 0:00:04]}  Kd5 {[%clk 0:00:03]} 73. Kf8 {[%clk 0:00:05]}  Ke6 {[%clk 0:00:03]} 74. Kg8 {[%clk 0:00:05]}  Kf6 {[%clk 0:00:04]} 75. Kf8 {[%clk 0:00:06]}  Ra8# {[%clk 0:00:04]} 0-1

[Event "November 21 Early 2023"]
[Site "https://www.chess.com"]
[Date "2023.11.21"]
[Round "6"]
[White "Tarasova, Viktoriya"]
[Black "Vlassov, Nikolai"]
[Result "0-1"]
[Board "93"]
[TimeControl "180+1"]
[WhiteFideId "4175840"]
[BlackFideId "4103360"]
[WhiteElo "2182"]
[BlackElo "2324"]
[WhiteTeam "RUS"]
[BlackTeam "FID"]
[WhiteClock "0:00:00"]
[BlackClock "0:00:08"]

1. d4 {[%clk 0:03:00]}  Nf6 {[%clk 0:02:59]} 2. c4 {[%clk 0:03:00]}  Nc6 {[%clk 0:02:59]} 3. d5 {[%clk 0:03:00]}  Ne5 {[%clk 0:02:58]} 4. Qc2 {[%clk 0:02:58]}  e6 {[%clk 0:02:57]} 5. e4 {[%clk 0:02:54]}  Bc5 {[%clk 0:02:54]} 6. h3 {[%clk 0:02:36]}  O-O {[%clk 0:02:51]} 7. Nc3 {[%clk 0:02:33]}  exd5 {[%clk 0:02:50]} 8. cxd5 {[%clk 0:02:33]}  c6 {[%clk 0:02:47]} 9. Bg5 {[%clk 0:02:32]}  h6 {[%clk 0:02:36]} 10. Bh4 {[%clk 0:02:31]}  Ng6 {[%clk 0:02:32]} 11. Bg3 {[%clk 0:02:30]}  cxd5 {[%clk 0:02:30]} 12. exd5 {[%clk 0:02:26]}  Re8+ {[%clk 0:02:20]} 13. Nge2 {[%clk 0:02:26]}  Nh5 {[%clk 0:02:11]} 14. O-O-O {[%clk 0:02:19]}  d6 {[%clk 0:02:08]} 15. Kb1 {[%clk 0:02:10]}  Qf6 {[%clk 0:02:04]} 16. Nc1 {[%clk 0:02:00]}  Nxg3 {[%clk 0:01:57]} 17. fxg3 {[%clk 0:01:59]}  Bb4 {[%clk 0:01:38]} 18. Nb5 {[%clk 0:01:23]}  Bf5 {[%clk 0:01:30]} 19. Bd3 {[%clk 0:01:23]}  Rac8 {[%clk 0:01:24]} 20. Qb3 {[%clk 0:01:23]}  Bc5 {[%clk 0:01:16]} 21. Rhf1 {[%clk 0:01:18]}  Bxd3+ {[%clk 0:01:15]} 22. Nxd3 {[%clk 0:01:18]}  Qe7 {[%clk 0:01:01]} 23. Rde1 {[%clk 0:01:12]}  Qd7 {[%clk 0:01:00]} 24. Rxe8+ {[%clk 0:01:04]}  Rxe8 {[%clk 0:00:59]} 25. Nxc5 {[%clk 0:01:03]}  dxc5 {[%clk 0:01:00]} 26. Nxa7 {[%clk 0:00:52]}  Re2 {[%clk 0:00:54]} 27. Qc4 {[%clk 0:00:24]}  Rxg2 {[%clk 0:00:52]} 28. Qxc5 {[%clk 0:00:22]}  Qxh3 {[%clk 0:00:49]} 29. Qc8+ {[%clk 0:00:19]}  Qxc8 {[%clk 0:00:49]} 30. Nxc8 {[%clk 0:00:19]}  Rxg3 {[%clk 0:00:45]} 31. Rd1 {[%clk 0:00:19]}  Ne5 {[%clk 0:00:42]} 32. Nb6 {[%clk 0:00:17]}  h5 {[%clk 0:00:34]} 33. d6 {[%clk 0:00:17]}  h4 {[%clk 0:00:34]} 34. d7 {[%clk 0:00:17]}  Nxd7 {[%clk 0:00:33]} 35. Nxd7 {[%clk 0:00:18]}  h3 {[%clk 0:00:34]} 36. Rh1 {[%clk 0:00:12]}  f5 {[%clk 0:00:25]} 37. Nc5 {[%clk 0:00:11]}  b5 {[%clk 0:00:21]} 38. a4 {[%clk 0:00:10]}  bxa4 {[%clk 0:00:21]} 39. Nxa4 {[%clk 0:00:09]}  g5 {[%clk 0:00:21]} 40. Nc5 {[%clk 0:00:08]}  g4 {[%clk 0:00:20]} 41. b4 {[%clk 0:00:07]}  Re3 {[%clk 0:00:13]} 42. Kb2 {[%clk 0:00:05]}  g3 {[%clk 0:00:09]} 43. Rxh3 {[%clk 0:00:04]}  g2 {[%clk 0:00:09]} 44. Rxe3 {[%clk 0:00:04]}  g1=Q {[%clk 0:00:09]} 45. Re2 {[%clk 0:00:00]}  Kf7 {[%clk 0:00:08]} 0-1

[Event "November 21 Early 2023"]
[Site "https://www.chess.com"]
[Date "2023.11.21"]
[Round "6"]
[White "komogro"]
[Black "Predator0608"]
[Result "0-1"]
[Board "95"]
[TimeControl "180+1"]
[WhiteElo "2349"]
[BlackElo "2594"]
[WhiteClock "0:00:00"]
[BlackClock "0:00:10"]

1. d4 {[%clk 0:03:00]}  d5 {[%clk 0:02:57]} 2. c4 {[%clk 0:03:01]}  e6 {[%clk 0:02:58]} 3. Nf3 {[%clk 0:03:01]}  Nf6 {[%clk 0:02:58]} 4. Nc3 {[%clk 0:03:02]}  Be7 {[%clk 0:02:57]} 5. Bg5 {[%clk 0:03:02]}  O-O {[%clk 0:02:55]} 6. e3 {[%clk 0:03:03]}  h6 {[%clk 0:02:56]} 7. Bh4 {[%clk 0:03:01]}  b6 {[%clk 0:02:55]} 8. g4 {[%clk 0:03:00]}  Nxg4 {[%clk 0:02:36]} 9. Bxe7 {[%clk 0:03:01]}  Qxe7 {[%clk 0:02:36]} 10. cxd5 {[%clk 0:03:01]}  Bb7 {[%clk 0:02:31]} 11. Rg1 {[%clk 0:02:56]}  Nf6 {[%clk 0:02:26]} 12. dxe6 {[%clk 0:02:56]}  Qxe6 {[%clk 0:02:26]} 13. Ne5 {[%clk 0:02:55]}  Nbd7 {[%clk 0:02:16]} 14. Bc4 {[%clk 0:02:55]}  Qf5 {[%clk 0:02:12]} 15. Qb3 {[%clk 0:02:34]}  Nxe5 {[%clk 0:01:59]} 16. dxe5 {[%clk 0:02:35]}  Qxe5 {[%clk 0:01:57]} 17. O-O-O {[%clk 0:02:35]}  a5 {[%clk 0:01:49]} 18. Rg3 {[%clk 0:02:14]}  a4 {[%clk 0:01:39]} 19. Qc2 {[%clk 0:01:51]}  Nh5 {[%clk 0:01:22]} 20. f4 {[%clk 0:01:39]}  Qc5 {[%clk 0:01:13]} 21. Rh3 {[%clk 0:00:56]}  Qxc4 {[%clk 0:01:05]} 22. Rxh5 {[%clk 0:00:55]}  Bf3 {[%clk 0:01:05]} 23. Rxh6 {[%clk 0:00:50]}  gxh6 {[%clk 0:00:57]} 24. Rg1+ {[%clk 0:00:48]}  Kh8 {[%clk 0:00:56]} 25. Qf2 {[%clk 0:00:49]}  Qc6 {[%clk 0:00:18]} 26. e4 {[%clk 0:00:37]}  Bxe4 {[%clk 0:00:18]} 27. Qd4+ {[%clk 0:00:36]}  f6 {[%clk 0:00:18]} 28. f5 {[%clk 0:00:20]}  Bxf5 {[%clk 0:00:13]} 29. Qf4 {[%clk 0:00:19]}  Bh7 {[%clk 0:00:13]} 30. Qxh6 {[%clk 0:00:17]}  Rg8 {[%clk 0:00:13]} 31. Re1 {[%clk 0:00:16]}  a3 {[%clk 0:00:13]} 32. Re7 {[%clk 0:00:15]}  Rg1+ {[%clk 0:00:10]} 33. Kd2 {[%clk 0:00:13]}  Qg2+ {[%clk 0:00:10]} 34. Ke3 {[%clk 0:00:12]}  Re1+ {[%clk 0:00:10]} 35. Kd4 {[%clk 0:00:00]}  Rxe7 {[%clk 0:00:10]} 0-1

[Event "November 21 Early 2023"]
[Site "https://www.chess.com"]
[Date "2023.11.21"]
[Round "6"]
[White "gueraumasague"]
[Black "Skibbe, Willi"]
[Result "1-0"]
[Board "96"]
[TimeControl "180+1"]
[BlackFideId "4682190"]
[WhiteElo "2591"]
[BlackElo "2278"]
[BlackTeam "GER"]
[WhiteClock "0:00:15"]
[BlackClock "0:00:25"]

1. e4 {[%clk 0:02:54]}  e6 {[%clk 0:03:00]} 2. Nf3 {[%clk 0:02:53]}  d5 {[%clk 0:03:01]} 3. d3 {[%clk 0:02:49]}  dxe4 {[%clk 0:02:58]} 4. dxe4 {[%clk 0:02:49]}  Qxd1+ {[%clk 0:02:58]} 5. Kxd1 {[%clk 0:02:50]}  Nc6 {[%clk 0:02:59]} 6. Bf4 {[%clk 0:02:36]}  Bd6 {[%clk 0:02:54]} 7. Bxd6 {[%clk 0:02:26]}  cxd6 {[%clk 0:02:55]} 8. Nc3 {[%clk 0:02:25]}  a6 {[%clk 0:02:54]} 9. Bd3 {[%clk 0:02:19]}  Bd7 {[%clk 0:02:52]} 10. Ke2 {[%clk 0:02:18]}  Nf6 {[%clk 0:02:51]} 11. Rhd1 {[%clk 0:02:15]}  Ke7 {[%clk 0:02:51]} 12. Na4 {[%clk 0:02:14]}  Nb4 {[%clk 0:02:47]} 13. Nb6 {[%clk 0:02:12]}  Rad8 {[%clk 0:02:25]} 14. a3 {[%clk 0:02:06]}  Nxd3 {[%clk 0:02:24]} 15. cxd3 {[%clk 0:02:07]}  Bc6 {[%clk 0:02:14]} 16. Rdc1 {[%clk 0:02:06]}  Nd7 {[%clk 0:02:11]} 17. Nc4 {[%clk 0:01:45]}  Rc8 {[%clk 0:02:11]} 18. Rc3 {[%clk 0:01:36]}  Bb5 {[%clk 0:02:08]} 19. Rac1 {[%clk 0:01:36]}  Bxc4 {[%clk 0:02:08]} 20. Rxc4 {[%clk 0:01:35]}  Nb6 {[%clk 0:02:01]} 21. Rc7+ {[%clk 0:01:30]}  Kd8 {[%clk 0:02:01]} 22. Rxc8+ {[%clk 0:01:30]}  Nxc8 {[%clk 0:02:01]} 23. Ng5 {[%clk 0:01:30]}  Rf8 {[%clk 0:01:47]} 24. Nxh7 {[%clk 0:01:28]}  Re8 {[%clk 0:01:47]} 25. Ng5 {[%clk 0:01:26]}  f6 {[%clk 0:01:47]} 26. Nf3 {[%clk 0:01:18]}  Kd7 {[%clk 0:01:38]} 27. h4 {[%clk 0:01:17]}  Ne7 {[%clk 0:01:34]} 28. h5 {[%clk 0:01:01]}  f5 {[%clk 0:01:27]} 29. Nd4 {[%clk 0:00:43]}  Rh8 {[%clk 0:01:23]} 30. exf5 {[%clk 0:00:35]}  exf5 {[%clk 0:01:20]} 31. Rh1 {[%clk 0:00:29]}  Rh6 {[%clk 0:01:20]} 32. Rh3 {[%clk 0:00:26]}  d5 {[%clk 0:00:56]} 33. Kf3 {[%clk 0:00:27]}  Rb6 {[%clk 0:00:54]} 34. b4 {[%clk 0:00:25]}  Rh6 {[%clk 0:00:49]} 35. Kf4 {[%clk 0:00:24]}  Rh8 {[%clk 0:00:44]} 36. Nxf5 {[%clk 0:00:18]}  Nxf5 {[%clk 0:00:35]} 37. Kxf5 {[%clk 0:00:19]}  Rf8+ {[%clk 0:00:36]} 38. Kg6 {[%clk 0:00:20]}  Rxf2 {[%clk 0:00:36]} 39. g4 {[%clk 0:00:20]}  Rg2 {[%clk 0:00:28]} 40. Rh4 {[%clk 0:00:13]}  Rg3 {[%clk 0:00:27]} 41. Kxg7 {[%clk 0:00:14]}  Rxd3 {[%clk 0:00:27]} 42. h6 {[%clk 0:00:14]}  Re3 {[%clk 0:00:26]} 43. h7 {[%clk 0:00:15]}  Re7+ {[%clk 0:00:27]} 44. Kg6 {[%clk 0:00:15]}  Re6+ {[%clk 0:00:25]} 45. Kf5 {[%clk 0:00:15]} 1-0